bitfinex-derivatives/quotes_ETHF0:USTF0_20250531
["timestamp","ask_amount","ask_price","bid_price","bid_amount"]
[1748687533591,0.79306,2521.0,2520.8,2.08858]
[1748687533987,0.79307,2520.9,2520.8,1.44018]
[1748687534290,0.79307,2520.9,2520.0,3.87353473]
[1748687534291,4.275,2520.9,2520.0,3.87353473]
[1748687534593,3.2078,2520.7,2520.4,0.79322]
[1748687534893,4.00095,2520.7,2520.4,0.79322]
[1748687535092,3.2078,2520.7,2520.3,0.79324]
[1748687535300,3.2078,2520.7,2520.4,0.79322]
[1748687535301,0.79318,2520.6,2520.4,0.79322]
[1748687535508,3.2078,2520.7,2520.3,1.2777]
[1748687535798,0.79321,2520.5,2520.3,2.07094]
[1748687535989,0.7932,2520.5,2520.3,2.07095]
[1748687536194,0.79318,2520.6,2520.3,1.2777]
[1748687536391,4.00095,2520.7,2520.5,0.7932]
[1748687536592,4.00094,2520.7,2520.5,0.79319]
[1748687536797,0.79318,2520.6,2520.4,0.79321]
[1748687537096,3.2078,2520.7,2520.4,0.79323]
[1748687537392,0.7932,2520.5,2520.3,2.07094]
[1748687537594,0.79318,2520.6,2520.4,0.7932]
[1748687537888,3.2078,2520.7,2520.3,1.2777]
[1748687538287,3.2078,2520.7,2520.6,0.79317]
[1748687538689,4.00093,2520.7,2520.5,0.79318]
[1748687538891,0.79905507,2520.8,2520.6,0.79317]
[1748687539091,0.79313,2520.7,2520.6,0.79317]
[1748687539293,0.79322,2520.5,2520.2,0.6395]
[1748687539493,0.79318,2520.6,2520.4,0.7932]
[1748687539796,0.79318,2520.6,2520.5,0.7932]
[1748687539997,4.00096,2520.7,2520.6,0.79317]
[1748687540191,0.1983,2520.6,2520.5,0.79318]
[1748687540398,0.1983,2520.6,2520.4,0.07155339]
[1748687540592,0.1983,2520.6,2520.4,0.86475339]
[1748687540899,0.1983,2520.6,2520.5,0.7932]
[1748687541091,0.99147,2520.6,2520.5,0.7932]
[1748687542399,0.1983,2520.6,2520.5,0.7932]
[1748687542697,0.1983,2520.6,2520.5,2.0755]
[1748687543194,0.99147,2520.6,2520.5,1.2823]
[1748687543499,0.7932,2520.5,2520.4,0.86478339]
[1748687543998,0.7932,2520.5,2520.4,0.07155339]
[1748687544792,0.79338,2519.9,2519.8,2.71481]
[1748687544995,0.79338,2519.9,2519.8,1.9214]
[1748687545196,0.79338,2519.9,2519.8,0.6391]
[1748687546301,0.79345,2519.7,2519.6,0.79346]
[1748687546503,0.6507,2520.1,2519.5,1.3091]
[1748687546797,4.0686,2520.6,2520.1,0.79332]
[1748687547003,4.9373,2520.5,2519.7,3.2078]
[1748687547203,5.7305,2520.5,2520.4,0.07155339]
[1748687547404,1.98315,2520.3,2519.8,0.7934]
[1748687547603,0.79342,2519.8,2519.7,0.79344]
[1748687547803,4.00122,2519.9,2519.5,1.3091]
[1748687548104,4.0012,2519.9,2519.8,0.79342]
[1748687548704,3.2078,2519.9,2519.8,0.79342]
[1748687548898,3.2078,2520.4,2519.8,0.79342]
[1748687549096,4.278,2520.3,2520.2,0.79327]
[1748687549398,5.07127,2520.3,2520.2,0.79327]
[1748687549903,0.79329,2520.2,2520.1,0.7933]
[1748687550399,4.278,2520.3,2519.9,1.976]
[1748687550603,0.79331,2520.2,2520.1,0.79332]
[1748687551702,0.79331,2520.2,2520.1,0.79331]
[1748687553500,0.79334,2520.1,2520.0,0.79333]
[1748687554102,7.4858,2520.3,2519.9,1.45206]
[1748687554302,0.79335,2520.0,2519.9,1.45206]
[1748687554808,1.3349,2520.2,2519.7,1.2641]
[1748687555011,9.469,2520.3,2519.5,0.6463]
[1748687555012,2.0102,2519.9,2519.5,0.6463]
[1748687555299,3.2078,2520.0,2519.6,0.79346]
[1748687555503,0.79343,2519.8,2519.7,0.79342]
[1748687557006,0.79343,2519.9,2519.8,0.79341]
[1748687557609,0.79343,2519.9,2519.6,1.2641]
[1748687557610,0.79338,2520.0,2519.9,0.79338]
[1748687557909,3.2078,2520.2,2520.1,0.79332]
[1748687558108,0.6326,2520.5,2520.4,0.79323]
[1748687558420,3.4061,2520.6,2520.5,0.7932]
[1748687559009,3.4061,2520.6,2520.3,0.79323]
[1748687559010,0.79324,2520.4,2520.3,0.79323]
[1748687559811,4.6727,2520.6,2520.2,3.42618]
[1748687560209,6.65564,2520.6,2520.1,0.07155339]
[1748687560510,0.79329,2520.2,2520.1,0.86487339]
[1748687560712,0.79329,2520.2,2520.1,0.86485339]
[1748687560913,0.79329,2520.2,2520.1,0.86487339]
[1748687561306,0.79329,2520.2,2520.1,0.07155339]
[1748687561808,9.00109,2520.2,2520.1,0.07155339]
[1748687562310,4.00109,2520.2,2520.1,0.07155339]
[1748687563413,8.28009,2520.2,2520.1,0.07155339]
[1748687563614,13.28009,2520.2,2520.1,0.07155339]
[1748687563820,0.79348,2519.6,2519.5,1.2315]
[1748687564025,0.79347,2519.7,2519.6,0.79345]
[1748687564524,0.79347,2519.7,2519.6,2.09915]
[1748687564816,0.79343,2519.8,2519.7,0.59502]
[1748687565817,0.79345,2519.7,2519.6,2.09916]
[1748687566620,0.79348,2519.6,2519.5,0.79349]
[1748687566821,1.98355,2519.8,2518.9,5.85776473]
[1748687567116,0.79352,2519.5,2519.4,0.79352]
[1748687567329,4.00724507,2519.6,2519.5,0.79351]
[1748687567512,3.21374507,2519.6,2519.5,0.79351]
[1748687567711,0.00594507,2519.6,2519.5,5.79351]
[1748687567912,0.00594507,2519.6,2519.5,0.79351]
[1748687568112,0.79944507,2519.6,2519.5,0.79351]
[1748687568312,0.79944507,2519.6,2519.5,2.07861]
[1748687569418,0.00594507,2519.6,2519.5,2.07861]
[1748687570323,0.79942507,2519.6,2519.5,2.07861]
[1748687571015,0.00594507,2519.6,2519.4,0.6512]
[1748687571219,0.79351,2519.5,2519.4,0.6512]
[1748687571423,0.79351,2519.5,2519.4,2.74063]
[1748687571824,0.79944507,2519.6,2519.5,0.79351]
[1748687572021,0.00594507,2519.6,2519.5,2.08941]
[1748687572221,0.00594507,2519.6,2519.5,7.08941]
[1748687572424,0.00594507,2519.6,2519.5,2.08941]
[1748687573118,0.79942507,2519.6,2519.5,1.2959]
[1748687573323,0.79351,2519.5,2519.4,1.44472]
[1748687573525,0.79351,2519.5,2519.4,2.70392]
[1748687573927,0.79944507,2519.6,2519.5,0.79351]
[1748687574131,0.00594507,2519.6,2519.5,0.79351]
[1748687574323,0.00594507,2519.6,2519.5,2.05271]
[1748687576223,0.00594507,2519.6,2519.5,7.05271]
[1748687576830,0.00594507,2519.6,2519.5,2.05271]
[1748687578131,0.79942507,2519.6,2519.5,2.05271]
[1748687578431,0.00594507,2519.6,2519.5,2.05271]
[1748687578633,0.79942507,2519.6,2519.5,2.05271]
[1748687578933,0.00594507,2519.6,2519.5,2.05271]
[1748687581034,0.79942507,2519.6,2519.5,2.05271]
[1748687581227,0.00594507,2519.6,2519.5,2.05271]
[1748687582328,0.79942507,2519.6,2519.5,2.05271]
[1748687582733,0.79942507,2519.6,2519.5,0.79351]
[1748687583233,0.00594507,2519.6,2519.5,0.79351]
[1748687583532,0.00594507,2519.6,2519.5,2.10281]
[1748687584632,0.00594507,2519.6,2519.5,2.17436339]
[1748687586137,0.00594507,2519.6,2519.5,7.17436339]
[1748687587334,3.2078,2520.5,2519.6,0.79348]
[1748687587542,0.79324,2520.4,2520.3,0.79324]
[1748687588037,0.79324,2520.4,2520.3,0.79323]
[1748687588234,3.2078,2520.5,2520.4,0.79323]
[1748687588642,2.01654507,2520.7,2520.4,0.79323]
[1748687588836,0.68174507,2520.7,2520.6,0.79316]
[1748687589138,0.00594507,2520.7,2520.6,0.79316]
[1748687589336,0.00594507,2520.7,2520.6,2.06526]
[1748687589644,0.79907507,2520.7,2520.6,1.2721]
[1748687589934,0.79907507,2520.7,2520.6,0.6508]
[1748687590329,0.79907507,2520.7,2520.5,2.04647]
[1748687590330,0.79317,2520.6,2520.5,0.79317]
[1748687590530,1.41659507,2520.7,2520.6,0.79316]
[1748687590839,0.7932,2520.5,2520.4,0.79323]
[1748687591236,2.04078,2520.6,2520.5,0.7932]
[1748687591536,1.2476,2520.6,2520.3,2.6089]
[1748687591838,0.79326,2520.3,2520.2,0.00594507]
[1748687592330,1.2476,2520.4,2520.2,0.00594507]
[1748687592533,0.79326,2520.3,2520.2,0.79921507]
[1748687592734,1.44646,2520.3,2520.2,0.00594507]
[1748687593631,3.8593,2520.5,2520.4,0.79323]
[1748687593632,3.2078,2520.5,2520.4,0.79323]
[1748687593832,0.00594507,2520.7,2520.6,0.79316]
[1748687595136,0.00594507,2520.7,2520.6,5.79316]
[1748687597037,0.00594507,2520.7,2520.6,0.79316]
[1748687597439,0.64704507,2520.7,2520.6,0.79316]
[1748687598143,1.44017507,2520.7,2520.6,0.79316]
[1748687598442,0.79318,2520.6,2520.5,0.79318]
[1748687598941,1.44019507,2520.7,2520.6,0.79316]
[1748687599336,0.79318,2520.6,2520.5,0.79319]
[1748687599840,2.06008,2520.6,2520.5,0.79319]
[1748687600141,1.2669,2520.6,2520.5,0.79319]
[1748687601743,1.44019507,2520.7,2520.6,0.79316]
[1748687601943,1.44019507,2520.7,2520.6,0.86471339]
[1748687602344,0.64704507,2520.7,2520.6,0.86471339]
[1748687603048,0.00594507,2520.7,2520.6,0.86471339]
[1748687604546,0.00594507,2520.7,2520.6,4.07251339]
[1748687605045,0.00594507,2520.7,2520.6,9.07251339]
[1748687605346,1.2818,2521.5,2521.4,0.79291]
[1748687606141,2.07468,2521.5,2521.4,0.79291]
[1748687606443,1.2818,2521.5,2521.4,0.79291]
[1748687607944,0.6577,2521.6,2521.5,0.79288]
[1748687608448,1.9908,2521.6,2521.5,0.79288]
[1748687609248,0.6577,2521.6,2521.5,0.79288]
[1748687609440,3.21374507,2521.7,2521.6,0.79285]
[1748687609645,0.00594507,2521.7,2521.6,0.79285]
[1748687610547,0.00594507,2521.7,2521.6,2.05665]
[1748687614250,1.8629,2522.4,2521.9,0.79275]
[1748687614551,0.79275,2522.0,2521.9,0.79275]
[1748687614749,0.79285,2521.6,2521.5,3.2078]
[1748687614950,0.79288,2521.6,2521.4,0.79288]
[1748687615253,1.8629,2521.5,2521.2,6.82174507]
[1748687615453,0.79293,2521.4,2521.3,0.79292]
[1748687615650,2.12233,2521.4,2521.3,0.79292]
[1748687615955,1.3294,2521.4,2521.3,0.79292]
[1748687616555,0.79294,2521.3,2521.2,0.00594507]
[1748687616748,0.79294,2521.3,2521.2,0.79892507]
[1748687617052,1.3294,2521.4,2521.3,0.79294]
[1748687617555,2.12231,2521.4,2521.3,0.79294]
[1748687617752,0.79294,2521.3,2521.2,0.00594507]
[1748687618053,1.3294,2521.3,2521.2,0.79892507]
[1748687618351,0.6214,2521.5,2521.4,0.79291]
[1748687619151,0.6214,2521.5,2521.4,2.02471]
[1748687621051,0.79282,2521.7,2521.6,0.79285]
[1748687621246,1.45492,2521.7,2521.6,0.86440339]
[1748687621445,2.80562,2521.7,2521.6,0.86440339]
[1748687621849,2.0128,2521.7,2521.6,0.86440339]
[1748687622042,0.6621,2521.7,2521.6,0.86440339]
[1748687622943,1.45492,2521.7,2521.6,0.07155339]
[1748687623148,2.80562,2521.7,2521.6,0.07155339]
[1748687623758,2.80562,2521.7,2521.6,0.86440339]
[1748687625055,2.80562,2521.7,2521.6,0.07155339]
[1748687625458,2.0128,2521.7,2521.6,0.86440339]
[1748687626253,2.80562,2521.7,2521.6,0.86440339]
[1748687627058,2.80562,2521.7,2521.6,0.07155339]
[1748687630454,2.80562,2521.7,2521.6,0.86440339]
[1748687630656,2.80562,2521.7,2521.6,0.07155339]
[1748687633459,0.79294,2521.3,2521.2,0.00594507]
[1748687633665,4.00074,2521.3,2521.2,0.00594507]
[1748687634666,1.9926,2521.3,2521.2,0.79892507]
[1748687634856,0.6822,2521.3,2521.2,0.79892507]
[1748687635657,1.47514,2521.3,2521.2,0.79892507]
[1748687636763,0.6822,2521.3,2521.2,0.79892507]
[1748687636963,0.79292,2521.4,2521.3,0.79294]
[1748687637755,0.79294,2521.3,2521.2,0.00594507]
[1748687638763,0.79294,2521.3,2521.2,0.79892507]
[1748687639364,0.79294,2521.3,2521.2,0.00594507]
[1748687639567,0.79294,2521.3,2521.2,0.79892507]
[1748687640864,5.946,2521.5,2521.4,0.79291]
[1748687641062,0.79284,2521.7,2521.6,0.79282]
[1748687641367,0.79285,2521.6,2521.5,1.46656]
[1748687642770,0.79285,2521.6,2521.5,0.6737]
[1748687642971,0.79291,2521.4,2521.3,1.2325]
[1748687643867,0.79291,2521.4,2521.3,2.02542]
[1748687644069,0.7929,2521.5,2521.4,0.79288]
[1748687644870,0.79291,2521.4,2521.3,2.02541]
[1748687645079,0.79294,2521.3,2521.2,0.79888507]
[1748687646680,0.79294,2521.3,2521.2,0.00594507]
[1748687647080,2.10064,2521.3,2521.2,0.00594507]
[1748687651780,5.30844,2521.3,2521.2,0.00594507]
[1748687652981,5.30844,2521.3,2521.2,0.79892507]
[1748687653181,5.30844,2521.3,2521.2,0.00594507]
[1748687653385,4.5155,2521.3,2521.2,0.79892507]
[1748687653587,0.6563,2521.4,2521.3,0.79294]
[1748687653886,4.00067,2521.6,2521.5,0.79288]
[1748687654590,0.79288,2521.5,2521.4,2.05349]
[1748687655691,4.00067,2521.6,2521.5,0.79288]
[1748687656093,4.00067,2521.6,2521.5,1.42328]
[1748687656794,4.00067,2521.6,2521.5,1.49483339]
[1748687657692,3.2078,2521.6,2521.5,1.49483339]
[1748687657891,0.00594507,2521.8,2521.7,0.79282]
[1748687658484,0.00594507,2521.8,2521.7,1.46712]
[1748687661485,0.79873507,2521.8,2521.7,0.6743]
[1748687661891,0.79873507,2521.8,2521.7,1.46712]
[1748687662086,1.45443507,2521.8,2521.7,0.6743]
[1748687662494,1.45443507,2521.8,2521.7,1.46712]
[1748687663692,1.45443507,2521.8,2521.7,0.6743]
[1748687663894,0.79284,2521.7,2521.6,0.79283]
[1748687664197,0.79285,2521.6,2521.5,1.36045339]
[1748687664495,0.79284,2521.7,2521.5,0.70195339]
[1748687664799,0.79284,2521.7,2521.5,2.61185339]
[1748687664988,0.79285,2521.6,2521.5,3.40470339]
[1748687666502,0.79285,2521.7,2521.6,0.79284]
[1748687666998,0.79285,2521.6,2521.5,3.40469339]
[1748687668195,1.97714507,2521.8,2521.6,0.79282]
[1748687668390,0.79282,2521.7,2521.6,0.79282]
[1748687673298,2.11342,2521.7,2521.6,0.79282]
[1748687674494,1.3206,2521.7,2521.6,0.79282]
[1748687675800,2.11342,2521.7,2521.6,0.79282]
[1748687676003,2.11342,2521.7,2521.6,0.86437339]
[1748687677900,1.3206,2521.7,2521.6,0.86437339]
[1748687678098,2.11342,2521.7,2521.6,0.86437339]
[1748687681204,0.79282,2521.7,2521.6,0.86437339]
[1748687681705,0.79282,2521.7,2521.6,0.07155339]
[1748687681906,2.12072,2521.7,2521.6,0.86440339]
[1748687682107,2.12072,2521.7,2521.6,0.07155339]
[1748687682314,2.12072,2521.7,2521.6,0.86440339]
[1748687682507,2.12072,2521.7,2521.6,0.07155339]
[1748687682709,2.12072,2521.7,2521.6,0.86440339]
[1748687683003,2.12072,2521.7,2521.6,0.07155339]
[1748687684307,2.12072,2521.7,2521.6,0.86440339]
[1748687684808,2.12072,2521.7,2521.6,0.07155339]
[1748687685202,2.12072,2521.7,2521.6,0.86440339]
[1748687686808,2.12072,2521.7,2521.6,0.07155339]
[1748687688010,0.79294,2521.3,2521.2,0.00594507]
[1748687688308,4.00074,2521.3,2521.2,0.00594507]
[1748687688900,5.25334,2521.3,2521.2,0.79892507]
[1748687689611,5.25334,2521.3,2521.2,0.00594507]
[1748687689811,5.25334,2521.3,2521.2,0.79892507]
[1748687690411,5.25334,2521.3,2521.2,0.00594507]
[1748687700520,4.00074,2521.3,2521.2,0.00594507]
[1748687701409,5.32614,2521.3,2521.2,0.00594507]
[1748687702715,5.32614,2521.3,2521.2,0.79892507]
[1748687702917,5.32614,2521.3,2521.2,0.00594507]
[1748687703110,3.2078,2521.3,2521.2,0.79892507]
[1748687703322,4.00074,2521.3,2521.2,2.14732507]
[1748687704323,4.00074,2521.3,2521.2,2.21887846]
[1748687704523,4.00074,2521.3,2521.2,1.42589846]
[1748687705523,4.00074,2521.3,2521.2,0.07749846]
[1748687706119,4.65674,2521.3,2521.2,0.07749846]
[1748687710529,0.79313,2520.7,2520.6,0.6238]
[1748687714631,1.98285,2520.7,2520.4,0.00594507]
[1748687714927,4.001,2520.5,2520.4,0.00594507]
[1748687715926,5.2931,2520.5,2520.4,0.00594507]
[1748687716129,5.53393066,2520.5,2520.4,0.00594507]
[1748687717828,4.24183066,2520.5,2520.4,0.00594507]
[1748687719524,4.91343066,2520.5,2520.4,0.07749846]
[1748687719926,5.15421727,2520.5,2520.4,0.07749846]
[1748687720123,4.91343066,2520.5,2520.4,0.07749846]
[1748687720320,11.10330066,2520.5,2519.8,1.319]
[1748687720625,0.79345,2519.7,2519.6,0.79346]
[1748687720927,0.79345,2519.7,2519.6,2.11246]
[1748687721331,0.79345,2519.7,2519.6,1.319]
[1748687721630,0.79345,2519.7,2519.6,2.11246]
[1748687721829,4.49624507,2519.9,2519.6,1.319]
[1748687722022,0.79345,2519.7,2519.6,2.11248]
[1748687723523,0.79348,2519.6,2519.5,1.2757]
[1748687723725,0.79348,2519.6,2519.5,2.5648]
[1748687724528,0.79348,2519.6,2519.5,3.35831]
[1748687725033,0.79348,2519.6,2519.5,2.5648]
[1748687726135,0.79348,2519.6,2519.5,3.35831]
[1748687726633,0.79348,2519.6,2519.5,2.5648]
[1748687726833,0.79348,2519.6,2519.5,3.35831]
[1748687727026,0.79347,2519.7,2519.6,0.79346]
[1748687727526,4.49624507,2519.9,2519.5,3.35829]
[1748687727527,0.79348,2519.6,2519.5,3.35829]
[1748687728228,0.79351,2519.5,2519.4,0.00594507]
[1748687728432,1.45051,2519.5,2519.4,0.00594507]
[1748687728732,1.45051,2519.5,2519.4,0.79948507]
[1748687728935,1.45051,2519.5,2519.4,0.00594507]
[1748687729229,1.45051,2519.5,2519.4,0.79948507]
[1748687729628,1.45051,2519.5,2519.4,0.00594507]
[1748687730527,2.69771,2519.5,2519.4,0.00594507]
[1748687730835,7.69771,2519.5,2519.4,0.00594507]
[1748687731131,2.69771,2519.5,2519.4,0.00594507]
[1748687731345,6.91171,2519.5,2519.4,0.00594507]
[1748687734838,6.91171,2519.5,2519.4,0.07749846]
[1748687735227,25.63371,2519.5,2519.4,0.07749846]
[1748687736042,25.63271,2519.5,2519.4,0.07749846]
[1748687738636,2.69771,2519.5,2519.4,0.07749846]
[1748687739037,25.63171,2519.5,2519.4,0.07749846]
[1748687739940,0.7937,2518.9,2518.8,0.6405]
[1748687740139,0.7937,2518.9,2518.8,1.9808]
[1748687740339,0.7937,2518.9,2518.8,2.77453]
[1748687740639,0.7937,2518.9,2518.8,1.9808]
[1748687741235,0.79373,2518.8,2518.7,0.6764]
[1748687741440,4.00153,2518.8,2518.7,0.6764]
[1748687742037,4.00153,2518.8,2518.7,1.47016]
[1748687742334,3.2078,2518.8,2518.7,1.47016]
[1748687742641,0.1984,2518.9,2518.8,0.79373]
[1748687742842,0.1984,2518.9,2518.8,2.13403]
[1748687743140,0.9921,2518.9,2518.8,2.13403]
[1748687743533,0.9921,2518.9,2518.5,0.6239]
[1748687743534,0.79379,2518.6,2518.5,0.6239]
[1748687743739,0.79383,2518.5,2518.4,0.15596936]
[1748687747043,2.13273,2518.5,2518.4,0.15596936]
[1748687747238,2.13273,2518.5,2518.4,9.36e-06]
[1748687749465,7.13273,2518.5,2518.4,9.36e-06]
[1748687749650,6.3389,2518.5,2517.0,10.09400107]
[1748687749840,3.2078,2517.3,2517.1,2.09725]
[1748687750148,0.79415,2517.5,2517.1,2.5939]
[1748687750351,0.79419,2517.4,2517.2,2.08511]
[1748687750548,0.79419,2517.4,2517.3,1.2909]
[1748687750744,0.79419,2517.4,2517.3,1.30313595]
[1748687751946,0.79416,2517.5,2517.4,0.79417]
[1748687752148,3.2078,2517.7,2517.3,1.30313595]
[1748687752344,0.76561675,2517.5,2517.3,2.08509]
[1748687752544,0.79417,2517.4,2517.3,1.2909]
[1748687752846,3.2078,2517.7,2517.3,1.3072073]
[1748687753150,4.0019,2517.7,2517.5,0.79413]
[1748687753445,0.00595711,2518.0,2517.9,0.79401]
[1748687753850,0.00595711,2518.0,2517.9,5.8103173]
[1748687754049,3.2078,2518.7,2518.4,0.07155339]
[1748687754248,4.00165,2518.5,2518.4,0.70485339]
[1748687754844,4.00165,2518.5,2518.4,0.08786069]
[1748687755442,4.00165,2518.5,2518.4,0.10417235]
[1748687756350,4.00165,2518.5,2518.4,0.1402584]
[1748687756848,3.2078,2518.5,2518.4,0.97019445]
[1748687757049,4.00162,2518.5,2518.4,0.17634445]
[1748687757253,4.00162,2518.5,2518.4,1.6588805]
[1748687757449,3.2078,2518.5,2518.4,1.6588805]
[1748687757956,4.0016,2518.5,2518.4,0.8650305]
[1748687759454,4.0016,2518.5,2518.4,0.90105072]
[1748687760159,4.0016,2518.5,2518.4,0.93707094]
[1748687760956,3.2078,2518.5,2518.4,1.73092094]
[1748687761155,0.00595711,2518.7,2518.6,0.79379]
[1748687761365,0.00595711,2518.7,2518.6,1.04272777]
[1748687762270,0.00595711,2518.7,2518.6,6.04272777]
[1748687763472,0.00595711,2518.7,2518.6,6.06148651]
[1748687764370,0.00595711,2518.7,2518.6,6.08024525]
[1748687764764,0.00595711,2518.7,2518.6,5.79379]
[1748687764964,0.00595711,2518.7,2518.6,6.09900399]
[1748687765464,0.00595711,2518.7,2518.6,6.11776273]
[1748687765860,0.00595711,2518.7,2518.6,5.79379]
[1748687766069,0.00595711,2518.7,2518.6,6.13652147]
[1748687766271,0.00595711,2518.7,2518.6,6.2268336]
[1748687767870,0.00595711,2518.7,2518.6,7.5583336]
[1748687768571,0.00595711,2518.7,2518.6,2.5583336]
[1748687769274,0.00595711,2518.7,2518.6,2.59229116]
[1748687769672,0.00595711,2518.7,2518.6,7.59229116]
[1748687769973,0.00595711,2518.7,2518.6,7.62624872]
[1748687770871,0.00595711,2518.7,2518.6,2.62624872]
[1748687771376,0.79970711,2518.7,2518.6,2.66020628]
[1748687771671,0.00595711,2518.7,2518.6,2.66020628]
[1748687772373,0.00595711,2518.7,2518.6,2.67912271]
[1748687772765,0.20445711,2518.7,2518.6,2.67912271]
[1748687774074,0.20445711,2518.7,2518.6,7.67912271]
[1748687774967,0.20445711,2518.7,2518.6,2.67912271]
[1748687775165,0.20445711,2518.7,2518.6,1.34762271]
[1748687775372,0.99820711,2518.7,2518.6,1.34762271]
[1748687775770,0.20445711,2518.7,2518.6,1.34762271]
[1748687775970,0.20445711,2518.7,2518.6,2.60942271]
[1748687777277,0.20445711,2518.7,2518.6,7.60942271]
[1748687777480,0.20445711,2518.7,2518.6,2.60942271]
[1748687778275,0.20445711,2518.7,2518.6,2.64327529]
[1748687778776,1.2994,2519.3,2519.2,0.7936]
[1748687779283,1.2994,2519.3,2519.2,1.33024697]
[1748687779484,4.62603,2519.4,2519.3,0.79356]
[1748687779876,5.90803,2519.4,2519.3,0.79356]
[1748687780083,5.1145,2519.4,2519.3,0.79356]
[1748687780280,5.1145,2519.4,2519.3,1.33020697]
[1748687780782,5.90803,2519.4,2519.3,1.33020697]
[1748687780983,5.1145,2519.4,2519.3,1.33020697]
[1748687781480,3.8325,2519.4,2519.3,1.33020697]
[1748687781684,0.6247,2519.4,2519.3,1.33020697]
[1748687783286,1.28795711,2519.6,2519.5,0.7935]
[1748687784586,2.08142711,2519.6,2519.5,1.33014697]
[1748687784778,2.08142711,2519.6,2519.5,0.53664697]
[1748687785180,1.28795711,2519.6,2519.5,1.37304989]
[1748687785484,0.00595711,2519.6,2519.5,1.37304989]
[1748687785680,0.00595711,2519.6,2519.5,1.38451462]
[1748687785885,4.00104,2520.4,2520.3,0.79325]
[1748687786081,5.92044,2520.4,2520.3,0.79325]
[1748687786382,5.1272,2520.4,2520.3,0.79325]
[1748687786583,5.1272,2520.4,2520.3,1.38426462]
[1748687789190,5.92042,2520.4,2520.3,1.38426462]
[1748687789391,5.1272,2520.4,2520.3,1.38426462]
[1748687790286,5.92042,2520.4,2520.3,1.38426462]
[1748687791189,5.92042,2520.4,2520.3,0.79325]
[1748687791388,5.92042,2520.4,2520.3,1.42703694]
[1748687792292,5.92042,2520.4,2520.3,1.43858877]
[1748687792491,5.1272,2520.4,2520.3,1.43858877]
[1748687793189,0.43913066,2520.5,2520.4,0.79322]
[1748687793388,0.43913066,2520.5,2520.4,1.43855877]
[1748687796193,1.72853066,2520.5,2520.4,1.43855877]
[1748687797296,5.72952066,2520.5,2520.4,1.43855877]
[1748687797791,3.15882066,2520.5,2520.4,0.64533877]
[1748687797992,5.57343066,2520.5,2520.3,0.86478339]
[1748687798189,1.3426,2520.4,2520.3,0.86478339]
[1748687798595,2.13582,2520.4,2520.3,0.07155339]
[1748687799096,2.13582,2520.4,2520.3,0.08304159]
[1748687800204,7.13582,2520.4,2520.3,0.08304159]
[1748687802802,0.79337,2520.0,2519.9,0.79336]
[1748687803201,0.79339,2519.9,2519.8,0.79338]
[1748687803402,2.14209,2519.9,2519.8,0.79338]
[1748687803699,1.3487,2519.9,2519.8,0.79338]
[1748687804099,2.14208,2519.9,2519.8,0.79338]
[1748687804701,2.14208,2519.9,2519.8,0.8337543]
[1748687804904,2.14208,2519.9,2519.8,0.0403743]
[1748687805404,0.79344,2519.7,2519.6,0.00595711]
[1748687805895,5.79344,2519.7,2519.6,0.00595711]
[1748687806094,7.10544,2519.7,2519.6,0.00595711]
[1748687806600,2.10544,2519.7,2519.6,0.00595711]
[1748687807302,2.10544,2519.7,2519.6,0.01995476]
[1748687807601,2.30384,2519.7,2519.6,0.01995476]
[1748687807997,2.30384,2519.7,2519.6,0.81342476]
[1748687810004,2.30384,2519.7,2519.6,0.88497815]
[1748687810205,1.5104,2519.7,2519.6,0.88497815]
[1748687810405,0.1984,2519.7,2519.6,0.88497815]
[1748687813209,0.99184,2519.7,2519.6,0.92319518]
[1748687813506,0.99184,2519.7,2519.6,0.12972518]
[1748687813708,0.99184,2519.7,2519.6,0.1458758]
[1748687813906,2.22574,2519.7,2519.6,0.1458758]
[1748687814608,7.22574,2519.7,2519.6,0.1458758]
[1748687815508,1.984,2519.2,2518.6,1.3219]
[1748687815706,1.984,2519.2,2518.7,0.79372]
[1748687815707,0.79373,2518.8,2518.7,0.79372]
[1748687817307,0.79375,2518.7,2518.6,0.79378]
[1748687817616,0.79379,2518.6,2518.5,1.26185711]
[1748687817807,0.79379,2518.6,2518.5,0.63455711]
[1748687818010,4.62719,2518.6,2518.5,0.00595711]
[1748687818415,0.79394,2518.1,2518.0,3.94264161]
[1748687819109,2.10934,2518.1,2517.9,0.79399]
[1748687819308,1.3154,2518.1,2517.8,1.46683]
[1748687819508,0.79397,2518.0,2517.9,0.79401]
[1748687819806,0.79397,2518.0,2517.9,0.03434834]
[1748687820007,2.09437,2518.0,2517.9,0.03434834]
[1748687820206,2.09437,2518.0,2517.9,0.82835834]
[1748687820515,1.3004,2518.0,2517.9,0.82835834]
[1748687821415,0.6707,2518.1,2518.0,0.79397]
[1748687821615,0.6707,2518.1,2518.0,0.82831834]
[1748687821917,3.2078,2518.2,2518.1,0.79394]
[1748687822217,3.2078,2518.7,2518.0,8.24214834]
[1748687822415,3.2078,2518.7,2518.6,0.79379]
[1748687822717,3.2078,2518.7,2518.6,0.82813834]
[1748687823609,4.00155,2518.7,2518.6,0.82813834]
[1748687823817,4.00155,2518.7,2518.6,0.03434834]
[1748687824013,0.79375,2518.7,2518.6,0.03434834]
[1748687824417,1.46444,2518.8,2518.6,0.82813834]
[1748687824717,0.6707,2518.8,2518.7,0.82809834]
[1748687825017,1.66292,2518.8,2518.7,0.82809834]
[1748687825414,0.99222,2518.8,2518.7,0.82809834]
[1748687825614,0.1985,2518.8,2518.7,0.82809834]
[1748687826723,0.99222,2518.8,2518.7,0.82809834]
[1748687829224,0.1985,2518.8,2518.7,0.82809834]
[1748687829824,0.99222,2518.8,2518.7,0.82809834]
[1748687830319,0.99222,2518.8,2518.7,0.03434834]
[1748687833919,0.79394,2518.1,2518.0,0.07155339]
[1748687834923,2.09704,2518.1,2518.0,0.07155339]
[1748687835126,0.79404,2517.8,2517.7,3.94264161]
[1748687835423,4.00184,2517.8,2517.7,3.94264161]
[1748687835621,0.79419,2517.3,2517.2,1.2969]
[1748687835926,0.79426,2517.1,2517.0,0.6386]